[Event "*** Titled Tuesday Blitz"]
[Site "Chess.com"]
[Date "2019.10.01"]
[Round "4"]
[White "grzechu96"]
[Black "gena217"]
[Result "1-0"]
[WhiteElo "2617"]
[BlackElo "2886"]
[TimeControl "180+2"]
[EndTime "13:56:33 PDT"]
[Termination "grzechu96 won by resignation"]

1. e4 {[%clk 0:03:01.9]} 1... c6 {[%clk 0:02:59.9]} 2. d4 {[%clk 0:02:59.2]}
2... d5 {[%clk 0:03:01.8]} 3. exd5 {[%clk 0:02:54]} 3... cxd5 {[%clk 0:03:03.7]}
4. Bd3 {[%clk 0:02:55.4]} 4... Nc6 {[%clk 0:03:02.4]} 5. c3 {[%clk 0:02:56.2]}
5... Nf6 {[%clk 0:02:58.8]} 6. Bf4 {[%clk 0:02:56.5]} 6... Bg4 {[%clk
0:02:56.5]} 7. Qb3 {[%clk 0:02:57.5]} 7... Qd7 {[%clk 0:02:57.3]} 8. Nd2 {[%clk
0:02:58]} 8... e6 {[%clk 0:02:56.2]} 9. Ngf3 {[%clk 0:02:59.1]} 9... Bd6 {[%clk
0:02:55.7]} 10. Ne5 {[%clk 0:02:26.1]} 10... Qc7 {[%clk 0:02:48.1]} 11. Nxg4
{[%clk 0:01:57.1]} 11... Bxf4 {[%clk 0:02:45.6]} 12. Nxf6+ {[%clk 0:01:57.9]}
12... gxf6 {[%clk 0:02:47.5]} 13. Nf3 {[%clk 0:01:59]} 13... O-O-O {[%clk
0:02:40.4]} 14. g3 {[%clk 0:01:55.8]} 14... Bd6 {[%clk 0:02:38.8]} 15. O-O-O
{[%clk 0:01:56.5]} 15... Kb8 {[%clk 0:02:26.6]} 16. Kb1 {[%clk 0:01:54.8]} 16...
f5 {[%clk 0:02:13.6]} 17. Nh4 {[%clk 0:01:49.7]} 17... Na5 {[%clk 0:02:04.5]}
18. Qc2 {[%clk 0:01:49.4]} 18... Rc8 {[%clk 0:02:02.4]} 19. f4 {[%clk
0:01:49.1]} 19... Ka8 {[%clk 0:01:56.5]} 20. Nf3 {[%clk 0:01:50]} 20... Rb8
{[%clk 0:01:57.6]} 21. Qe2 {[%clk 0:01:47.9]} 21... Rhc8 {[%clk 0:01:46.8]} 22.
Ne5 {[%clk 0:01:45.1]} 22... a6 {[%clk 0:01:41.3]} 23. Rc1 {[%clk 0:01:25.4]}
23... b5 {[%clk 0:01:41.6]} 24. b3 {[%clk 0:01:26.7]} 24... Nc4 {[%clk
0:01:39.6]} 25. Ka1 {[%clk 0:01:26.3]} 25... Qa5 {[%clk 0:01:33.4]} 26. bxc4
{[%clk 0:01:18.3]} 26... bxc4 {[%clk 0:01:35.3]} 27. Bxc4 {[%clk 0:01:19.8]}
27... dxc4 {[%clk 0:01:13.9]} 28. Nxc4 {[%clk 0:01:20.9]} 28... Qd5 {[%clk
0:01:03.2]} 29. Nxd6 {[%clk 0:01:19.7]} 29... Qxd6 {[%clk 0:01:05.1]} 30. Rhd1
{[%clk 0:01:20.8]} 30... Qa3 {[%clk 0:00:55.4]} 31. Qc2 {[%clk 0:00:56.5]} 31...
Rc4 {[%clk 0:00:52.9]} 32. d5 {[%clk 0:00:52.3]} 32... Rbc8 {[%clk 0:00:49.1]}
33. Qb2 {[%clk 0:00:30.6]} 33... Qc5 {[%clk 0:00:45.7]} 34. d6 {[%clk
0:00:29.2]} 34... Rd8 {[%clk 0:00:42.3]} 35. d7 {[%clk 0:00:29.6]} 35... Qc7
{[%clk 0:00:42.3]} 36. Qd2 {[%clk 0:00:24.8]} 36... Rc6 {[%clk 0:00:33.2]} 37.
Qd3 {[%clk 0:00:21.4]} 37... Qa5 {[%clk 0:00:24.8]} 38. c4 {[%clk 0:00:21.4]}
38... Rc7 {[%clk 0:00:22.6]} 39. c5 {[%clk 0:00:18]} 39... Rc6 {[%clk
0:00:17.3]} 40. Qf3 {[%clk 0:00:16.2]} 40... Kb7 {[%clk 0:00:12.9]} 41. Rd6
{[%clk 0:00:17.3]} 41... Qa4 {[%clk 0:00:14.1]} 42. Rc4 {[%clk 0:00:11.5]} 42...
Qb5 {[%clk 0:00:08.8]} 43. a4 {[%clk 0:00:07]} 43... Qxc4 {[%clk 0:00:06.8]} 44.
Qxc6+ {[%clk 0:00:07.8]} 44... Ka7 {[%clk 0:00:07.9]} 45. Qb6+ {[%clk
0:00:09.2]} 45... Ka8 {[%clk 0:00:09.5]} 46. Qxd8+ {[%clk 0:00:10.6]} 46... Ka7
{[%clk 0:00:11.4]} 47. Qb6+ {[%clk 0:00:11.7]} 1-0

[Event "*** Titled Tuesday Blitz"]
[Site "Chess.com"]
[Date "2019.10.01"]
[Round "4"]
[White "MathiasWomacka"]
[Black "Shubinkirill2003"]
[Result "0-1"]
[WhiteElo "2271"]
[BlackElo "2540"]
[TimeControl "180+2"]
[EndTime "13:56:50 PDT"]
[Termination "Shubinkirill2003 won by resignation"]

1. e4 {[%clk 0:02:50.2]} 1... e6 {[%clk 0:03:00.8]} 2. d4 {[%clk 0:02:50.5]}
2... d5 {[%clk 0:03:01.3]} 3. Nd2 {[%clk 0:02:52.1]} 3... Be7 {[%clk 0:03:01.6]}
4. Ngf3 {[%clk 0:02:52.3]} 4... Nf6 {[%clk 0:03:02.1]} 5. e5 {[%clk 0:02:53.7]}
5... Nfd7 {[%clk 0:03:03]} 6. Bd3 {[%clk 0:02:55.3]} 6... c5 {[%clk 0:03:04.2]}
7. c3 {[%clk 0:02:56.6]} 7... Nc6 {[%clk 0:03:05.2]} 8. O-O {[%clk 0:02:57.6]}
8... a5 {[%clk 0:03:06.2]} 9. Re1 {[%clk 0:02:54.6]} 9... Qb6 {[%clk 0:03:01]}
10. dxc5 {[%clk 0:02:32]} 10... Nxc5 {[%clk 0:02:49.5]} 11. Bc2 {[%clk
0:02:31.6]} 11... Bd7 {[%clk 0:02:46.4]} 12. Nb3 {[%clk 0:02:23.7]} 12... Nxb3
{[%clk 0:02:40.8]} 13. axb3 {[%clk 0:02:25.6]} 13... h6 {[%clk 0:02:34.9]} 14.
Be3 {[%clk 0:02:24.9]} 14... Qc7 {[%clk 0:02:34.7]} 15. Nd4 {[%clk 0:02:13.8]}
15... Nxd4 {[%clk 0:02:26.8]} 16. cxd4 {[%clk 0:02:03.4]} 16... Qb6 {[%clk
0:02:23.4]} 17. Qg4 {[%clk 0:02:01.7]} 17... g6 {[%clk 0:02:11.5]} 18. h4 {[%clk
0:01:55.9]} 18... h5 {[%clk 0:01:56.4]} 19. Qg3 {[%clk 0:01:56.9]} 19... O-O-O
{[%clk 0:01:52.4]} 20. Bd2 {[%clk 0:01:39.7]} 20... Bb4 {[%clk 0:01:48.3]} 21.
Bxb4 {[%clk 0:01:33.4]} 21... Qxb4 {[%clk 0:01:48.4]} 22. Qc3+ {[%clk
0:01:34.1]} 22... Qxc3 {[%clk 0:01:43.2]} 23. bxc3 {[%clk 0:01:36]} 23... b6
{[%clk 0:01:43.4]} 24. b4 {[%clk 0:01:32]} 24... axb4 {[%clk 0:01:33.5]} 25.
cxb4 {[%clk 0:01:33.5]} 25... Kb7 {[%clk 0:01:33]} 26. Bd3 {[%clk 0:01:34.4]}
26... Ra8 {[%clk 0:01:32]} 27. f4 {[%clk 0:01:30.3]} 27... Rhc8 {[%clk
0:01:25.3]} 28. Rxa8 {[%clk 0:01:28.8]} 28... Rxa8 {[%clk 0:01:25.2]} 29. Rb1
{[%clk 0:01:03.1]} 29... Ra2 {[%clk 0:01:24.4]} 30. Kf1 {[%clk 0:01:01.1]} 30...
Rd2 {[%clk 0:01:22.8]} 31. Be2 {[%clk 0:01:00.5]} 31... Rxd4 {[%clk 0:01:22.1]}
32. g3 {[%clk 0:01:02.1]} 32... Rd2 {[%clk 0:01:06.8]} 33. Ke1 {[%clk
0:00:58.8]} 33... Ra2 {[%clk 0:01:06]} 34. Rb3 {[%clk 0:00:48]} 34... Ba4 {[%clk
0:01:03.8]} 35. Rb1 {[%clk 0:00:47.9]} 35... Bc2 {[%clk 0:01:03.6]} 36. Rc1
{[%clk 0:00:48.7]} 36... Rb2 {[%clk 0:01:03.8]} 37. Kd2 {[%clk 0:00:48]} 37...
Be4+ {[%clk 0:01:00.6]} 38. Ke3 {[%clk 0:00:45.8]} 38... Rxb4 {[%clk 0:00:58.3]}
39. Ra1 {[%clk 0:00:46.9]} 39... Rb3+ {[%clk 0:00:52.3]} 40. Kf2 {[%clk
0:00:47.3]} 40... d4 {[%clk 0:00:52.9]} 41. Ba6+ {[%clk 0:00:46.5]} 41... Kb8
{[%clk 0:00:53.6]} 42. Bc4 {[%clk 0:00:46.1]} 42... Rb2+ {[%clk 0:00:54.3]} 43.
Ke1 {[%clk 0:00:46.1]} 43... b5 {[%clk 0:00:46.7]} 44. Be2 {[%clk 0:00:44.2]}
44... d3 {[%clk 0:00:45]} 45. Bd1 {[%clk 0:00:45]} 45... Rh2 {[%clk 0:00:38.8]}
46. Ra5 {[%clk 0:00:45.6]} 46... Kc7 {[%clk 0:00:31.1]} 47. Ra7+ {[%clk
0:00:42]} 47... Kb6 {[%clk 0:00:30.6]} 48. Rxf7 {[%clk 0:00:43.9]} 48... Kc5
{[%clk 0:00:23]} 49. Rd7 {[%clk 0:00:44.7]} 49... Kc4 {[%clk 0:00:23.4]} 50. Rd6
{[%clk 0:00:42.4]} 50... Kc3 {[%clk 0:00:23.7]} 51. Rxe6 {[%clk 0:00:41.4]}
51... Kd4 {[%clk 0:00:18.7]} 52. Bf3 {[%clk 0:00:21.2]} 52... Bxf3 {[%clk
0:00:16.6]} 0-1

[Event "*** Titled Tuesday Blitz"]
[Site "Chess.com"]
[Date "2019.10.01"]
[Round "4"]
[White "dopolian"]
[Black "TheFireChess"]
[Result "0-1"]
[WhiteElo "2334"]
[BlackElo "2510"]
[TimeControl "180+2"]
[EndTime "13:56:50 PDT"]
[Termination "TheFireChess won by resignation"]

1. e4 {[%clk 0:03:01.9]} 1... c6 {[%clk 0:02:59.7]} 2. Nc3 {[%clk 0:03:02.8]}
2... d5 {[%clk 0:03:01.6]} 3. Nf3 {[%clk 0:03:04.3]} 3... Bg4 {[%clk 0:03:02.1]}
4. h3 {[%clk 0:03:05.4]} 4... Bxf3 {[%clk 0:03:03.3]} 5. Qxf3 {[%clk 0:03:07.3]}
5... Nf6 {[%clk 0:03:04.8]} 6. d4 {[%clk 0:03:08.6]} 6... e6 {[%clk 0:03:05.5]}
7. Bd3 {[%clk 0:03:09.5]} 7... Bb4 {[%clk 0:03:06.5]} 8. e5 {[%clk 0:03:02.4]}
8... Nfd7 {[%clk 0:03:02.8]} 9. Qg4 {[%clk 0:02:47.3]} 9... g6 {[%clk
0:03:02.3]} 10. a3 {[%clk 0:02:47.8]} 10... Be7 {[%clk 0:03:01.1]} 11. Ne2
{[%clk 0:02:45.7]} 11... h5 {[%clk 0:02:53.8]} 12. Qg3 {[%clk 0:02:42.7]} 12...
Nf8 {[%clk 0:02:47.7]} 13. O-O {[%clk 0:02:25.8]} 13... c5 {[%clk 0:02:47.5]}
14. c3 {[%clk 0:02:25.1]} 14... Nc6 {[%clk 0:02:48.2]} 15. b4 {[%clk 0:02:25.1]}
15... cxd4 {[%clk 0:02:46]} 16. cxd4 {[%clk 0:02:25]} 16... Qb6 {[%clk
0:02:33.4]} 17. Be3 {[%clk 0:02:21.4]} 17... a5 {[%clk 0:02:34.1]} 18. b5 {[%clk
0:02:19.9]} 18... Na7 {[%clk 0:02:34.8]} 19. a4 {[%clk 0:02:18.5]} 19... Qd8
{[%clk 0:02:16.6]} 20. Rac1 {[%clk 0:01:59.9]} 20... Nc8 {[%clk 0:02:14.3]} 21.
Nf4 {[%clk 0:02:00]} 21... Nb6 {[%clk 0:02:06.7]} 22. Ra1 {[%clk 0:01:53.3]}
22... Rc8 {[%clk 0:02:02.3]} 23. Bd2 {[%clk 0:01:47.4]} 23... Nc4 {[%clk
0:01:59]} 24. Bxc4 {[%clk 0:01:44.2]} 24... Rxc4 {[%clk 0:01:59.9]} 25. Qd3
{[%clk 0:01:24.7]} 25... g5 {[%clk 0:01:14.7]} 26. Ne2 {[%clk 0:01:25.4]} 26...
g4 {[%clk 0:01:05.5]} 27. Rfc1 {[%clk 0:01:25.9]} 27... gxh3 {[%clk 0:01:04.9]}
28. Qxh3 {[%clk 0:01:27.8]} 28... Ng6 {[%clk 0:01:00.1]} 29. Rxc4 {[%clk
0:01:21.7]} 29... dxc4 {[%clk 0:01:02]} 30. Qf3 {[%clk 0:01:22.7]} 30... b6
{[%clk 0:00:17.3]} 31. Rc1 {[%clk 0:01:16.7]} 31... Qd5 {[%clk 0:00:16.7]} 32.
Qxd5 {[%clk 0:01:08.5]} 32... exd5 {[%clk 0:00:18.6]} 33. Nc3 {[%clk 0:01:09.9]}
33... Bb4 {[%clk 0:00:19.7]} 34. Nb1 {[%clk 0:00:59.6]} 34... Bxd2 {[%clk
0:00:20.6]} 35. Nxd2 {[%clk 0:01:00.6]} 35... Kd7 {[%clk 0:00:20]} 36. g3 {[%clk
0:00:53.2]} 36... h4 {[%clk 0:00:20.8]} 37. Kg2 {[%clk 0:00:54.7]} 37... hxg3
{[%clk 0:00:22]} 38. fxg3 {[%clk 0:00:56.6]} 38... Rg8 {[%clk 0:00:22.8]} 39.
Kf3 {[%clk 0:00:54.6]} 39... Ke6 {[%clk 0:00:23.3]} 40. Nb1 {[%clk 0:00:44.4]}
40... Rh8 {[%clk 0:00:22.9]} 41. Kg2 {[%clk 0:00:40.6]} 41... Ne7 {[%clk
0:00:23.8]} 42. g4 {[%clk 0:00:35.1]} 42... Rg8 {[%clk 0:00:21]} 43. Kf3 {[%clk
0:00:34.7]} 43... Rh8 {[%clk 0:00:22.5]} 44. Kg3 {[%clk 0:00:33.1]} 44... Rg8
{[%clk 0:00:24.1]} 45. Kf3 {[%clk 0:00:34.3]} 45... Rh8 {[%clk 0:00:24.8]} 46.
Kg3 {[%clk 0:00:35.4]} 46... Rh7 {[%clk 0:00:23.5]} 47. Nc3 {[%clk 0:00:35.5]}
47... f6 {[%clk 0:00:23.2]} 48. Re1 {[%clk 0:00:35.3]} 48... f5 {[%clk
0:00:23.8]} 49. Rf1 {[%clk 0:00:24.1]} 49... Rg7 {[%clk 0:00:24.8]} 50. Rf4
{[%clk 0:00:21.6]} 50... fxg4 {[%clk 0:00:25.7]} 51. Rxg4 {[%clk 0:00:23.5]}
51... Nf5+ {[%clk 0:00:27]} 52. Kf4 {[%clk 0:00:22.4]} 52... Rxg4+ {[%clk
0:00:28.9]} 53. Kxg4 {[%clk 0:00:23.7]} 53... Nxd4 {[%clk 0:00:30.8]} 54. Kf4
{[%clk 0:00:23.6]} 54... Nb3 {[%clk 0:00:29.8]} 55. Nd1 {[%clk 0:00:16.3]} 55...
Nc5 {[%clk 0:00:30.4]} 56. Nb2 {[%clk 0:00:15.7]} 56... c3 {[%clk 0:00:29.5]}
0-1

[Event "*** Titled Tuesday Blitz"]
[Site "Chess.com"]
[Date "2019.10.01"]
[Round "4"]
[White "Sjakkerntobi"]
[Black "Stormeman100100"]
[Result "0-1"]
[WhiteElo "2034"]
[BlackElo "2404"]
[TimeControl "180+2"]
[EndTime "13:56:55 PDT"]
[Termination "Stormeman100100 won by resignation"]

1. e4 {[%clk 0:03:01.9]} 1... c5 {[%clk 0:02:56]} 2. Nf3 {[%clk 0:03:02.8]} 2...
d6 {[%clk 0:02:54.4]} 3. Bb5+ {[%clk 0:03:03.5]} 3... Nd7 {[%clk 0:02:52.2]} 4.
Ba4 {[%clk 0:03:04.5]} 4... Nf6 {[%clk 0:02:52.6]} 5. O-O {[%clk 0:03:04.7]}
5... g6 {[%clk 0:02:52.5]} 6. Qe2 {[%clk 0:03:04.5]} 6... Bg7 {[%clk 0:02:52.2]}
7. c3 {[%clk 0:03:05.4]} 7... O-O {[%clk 0:02:48.6]} 8. d4 {[%clk 0:03:05.4]}
8... e5 {[%clk 0:02:47.2]} 9. Bg5 {[%clk 0:02:20.7]} 9... h6 {[%clk 0:02:41.8]}
10. Bxf6 {[%clk 0:02:19.3]} 10... Qxf6 {[%clk 0:02:37.5]} 11. dxe5 {[%clk
0:02:03.5]} 11... dxe5 {[%clk 0:02:37.6]} 12. Nbd2 {[%clk 0:02:01.5]} 12... a6
{[%clk 0:02:36.6]} 13. Bb3 {[%clk 0:02:00.8]} 13... b5 {[%clk 0:02:34.6]} 14. a4
{[%clk 0:02:02.1]} 14... c4 {[%clk 0:02:32.7]} 15. Bc2 {[%clk 0:02:02.7]} 15...
Bb7 {[%clk 0:02:31.7]} 16. axb5 {[%clk 0:01:58.5]} 16... axb5 {[%clk 0:02:33.6]}
17. b3 {[%clk 0:02:00]} 17... cxb3 {[%clk 0:02:20.1]} 18. Bxb3 {[%clk
0:02:00.1]} 18... Bc6 {[%clk 0:02:09.7]} 19. Bd5 {[%clk 0:01:30.6]} 19... Nb6
{[%clk 0:02:08.2]} 20. Bxc6 {[%clk 0:01:30.3]} 20... Qxc6 {[%clk 0:02:10.1]} 21.
Rxa8 {[%clk 0:01:29.6]} 21... Rxa8 {[%clk 0:02:10.4]} 22. Rb1 {[%clk 0:01:29.1]}
22... Ra5 {[%clk 0:02:00.7]} 23. Qd3 {[%clk 0:01:20.6]} 23... Kh7 {[%clk
0:01:52.2]} 24. h3 {[%clk 0:01:17.2]} 24... Na4 {[%clk 0:01:37.5]} 25. c4 {[%clk
0:01:03.8]} 25... bxc4 {[%clk 0:01:37.7]} 26. Qxc4 {[%clk 0:01:04.2]} 26... Qxc4
{[%clk 0:01:32.7]} 27. Nxc4 {[%clk 0:01:06.1]} 27... Rc5 {[%clk 0:01:34.2]} 28.
Nd6 {[%clk 0:00:50.9]} 28... Nc3 {[%clk 0:01:33.6]} 29. Re1 {[%clk 0:00:49.2]}
29... Kg8 {[%clk 0:01:28.2]} 30. Nb7 {[%clk 0:00:34.6]} 30... Rc4 {[%clk
0:01:21.4]} 31. Na5 {[%clk 0:00:35.1]} 31... Rxe4 {[%clk 0:01:19.1]} 32. Rxe4
{[%clk 0:00:36.6]} 32... Nxe4 {[%clk 0:01:20.2]} 33. Nc4 {[%clk 0:00:38.5]}
33... f6 {[%clk 0:01:19.1]} 34. Kf1 {[%clk 0:00:37.1]} 34... Kf7 {[%clk
0:01:17.9]} 35. Ke2 {[%clk 0:00:37]} 35... Ke6 {[%clk 0:01:13.9]} 36. Nfd2
{[%clk 0:00:37.8]} 36... Nc3+ {[%clk 0:01:11.2]} 37. Kd3 {[%clk 0:00:37.9]}
37... Nd5 {[%clk 0:01:11.4]} 38. g3 {[%clk 0:00:36.5]} 38... f5 {[%clk
0:01:12.3]} 39. Ne3 {[%clk 0:00:36.2]} 39... e4+ {[%clk 0:01:11.5]} 40. Ke2
{[%clk 0:00:34.4]} 40... Nc3+ {[%clk 0:01:12.7]} 41. Kf1 {[%clk 0:00:34.8]}
41... Bd4 {[%clk 0:01:12.3]} 42. Ng2 {[%clk 0:00:31.3]} 42... g5 {[%clk
0:01:08.1]} 43. h4 {[%clk 0:00:31.7]} 43... Nd1 {[%clk 0:01:07.7]} 44. hxg5
{[%clk 0:00:31.6]} 44... hxg5 {[%clk 0:01:09.6]} 45. g4 {[%clk 0:00:30.7]} 45...
Nxf2 {[%clk 0:01:07.2]} 46. gxf5+ {[%clk 0:00:31.7]} 46... Kxf5 {[%clk
0:01:08.3]} 47. Ke2 {[%clk 0:00:33]} 47... Ng4 {[%clk 0:01:04.1]} 48. Nf1 {[%clk
0:00:25.1]} 48... Be5 {[%clk 0:00:54.2]} 49. Nd2 {[%clk 0:00:23.9]} 49... Nf6
{[%clk 0:00:51.3]} 50. Ne3+ {[%clk 0:00:24.2]} 50... Kf4 {[%clk 0:00:52]} 51.
Ng2+ {[%clk 0:00:22.3]} 51... Kg3 {[%clk 0:00:51.9]} 52. Ne3 {[%clk 0:00:23.4]}
52... Bf4 {[%clk 0:00:49.3]} 53. Ndf1+ {[%clk 0:00:23.3]} 53... Kh3 {[%clk
0:00:49.6]} 54. Nd5 {[%clk 0:00:23.8]} 54... Nxd5 {[%clk 0:00:49.3]} 55. Kf2
{[%clk 0:00:25.3]} 55... g4 {[%clk 0:00:48]} 56. Kg1 {[%clk 0:00:25.8]} 56... e3
{[%clk 0:00:46.3]} 57. Nxe3 {[%clk 0:00:19.8]} 57... Bxe3+ {[%clk 0:00:48.2]}
58. Kf1 {[%clk 0:00:21.7]} 58... g3 {[%clk 0:00:48.3]} 59. Ke2 {[%clk
0:00:23.2]} 0-1

[Event "*** Titled Tuesday Blitz"]
[Site "Chess.com"]
[Date "2019.10.01"]
[Round "4"]
[White "VerdeNotte"]
[Black "kingofthenil"]
[Result "0-1"]
[WhiteElo "2763"]
[BlackElo "2568"]
[TimeControl "180+2"]
[EndTime "13:57:02 PDT"]
[Termination "kingofthenil won by resignation"]

1. c4 {[%clk 0:03:01.9]} 1... e6 {[%clk 0:02:59.4]} 2. g3 {[%clk 0:03:02.3]}
2... d5 {[%clk 0:02:59.3]} 3. Bg2 {[%clk 0:03:03.8]} 3... Nf6 {[%clk 0:03:00.7]}
4. Nf3 {[%clk 0:03:05]} 4... Be7 {[%clk 0:03:02]} 5. b3 {[%clk 0:03:06.1]} 5...
O-O {[%clk 0:03:03.9]} 6. Bb2 {[%clk 0:03:07.1]} 6... c5 {[%clk 0:03:02.6]} 7.
O-O {[%clk 0:03:07]} 7... d4 {[%clk 0:03:02.9]} 8. e3 {[%clk 0:03:08.2]} 8...
Nc6 {[%clk 0:03:02.9]} 9. exd4 {[%clk 0:03:09.4]} 9... cxd4 {[%clk 0:03:04.8]}
10. Re1 {[%clk 0:03:10.6]} 10... Ng4 {[%clk 0:03:06.2]} 11. h3 {[%clk
0:03:07.8]} 11... Nh6 {[%clk 0:03:06.2]} 12. Na3 {[%clk 0:02:56.9]} 12... f6
{[%clk 0:03:04.6]} 13. Nc2 {[%clk 0:02:52.2]} 13... e5 {[%clk 0:03:05.3]} 14. d3
{[%clk 0:02:44.7]} 14... Nf7 {[%clk 0:03:02.8]} 15. Ba3 {[%clk 0:02:41.3]} 15...
Bxa3 {[%clk 0:02:53.8]} 16. Nxa3 {[%clk 0:02:43.2]} 16... Be6 {[%clk 0:02:47.3]}
17. Qd2 {[%clk 0:02:36.1]} 17... Qd7 {[%clk 0:02:46.7]} 18. h4 {[%clk
0:02:29.4]} 18... a5 {[%clk 0:02:44.7]} 19. Nb5 {[%clk 0:02:29.1]} 19... Bh3
{[%clk 0:01:57.9]} 20. Bxh3 {[%clk 0:02:16.5]} 20... Qxh3 {[%clk 0:01:59.8]} 21.
Nc7 {[%clk 0:02:17.9]} 21... Rad8 {[%clk 0:01:42.9]} 22. Qe2 {[%clk 0:02:16.4]}
22... Nh6 {[%clk 0:01:42.4]} 23. Qf1 {[%clk 0:02:09.4]} 23... Qf5 {[%clk
0:01:40.5]} 24. Nd2 {[%clk 0:02:02.8]} 24... Nb4 {[%clk 0:01:39.5]} 25. Re4
{[%clk 0:01:47.5]} 25... Rd7 {[%clk 0:01:35.4]} 26. Nb5 {[%clk 0:01:34.7]} 26...
Ng4 {[%clk 0:01:23.1]} 27. Qe2 {[%clk 0:01:28.2]} 27... h5 {[%clk 0:01:15.9]}
28. Nf3 {[%clk 0:01:20]} 28... g5 {[%clk 0:01:02]} 29. Re1 {[%clk 0:01:02.8]}
29... Nc6 {[%clk 0:01:00.3]} 30. c5 {[%clk 0:00:59.3]} 30... gxh4 {[%clk
0:00:48.1]} 31. Nxh4 {[%clk 0:00:57.8]} 31... Qg5 {[%clk 0:00:49.4]} 32. Nd6
{[%clk 0:00:19.4]} 32... f5 {[%clk 0:00:44.5]} 33. f4 {[%clk 0:00:20.7]} 33...
exf4 {[%clk 0:00:24.3]} 34. Nf3 {[%clk 0:00:21.3]} 34... Qg7 {[%clk 0:00:22.7]}
35. Rxf4 {[%clk 0:00:22.5]} 35... Ne3 {[%clk 0:00:24]} 36. Qh2 {[%clk
0:00:22.7]} 36... Rf6 {[%clk 0:00:19.8]} 37. Qh4 {[%clk 0:00:22.1]} 37... Rg6
{[%clk 0:00:20.1]} 38. Kf2 {[%clk 0:00:21]} 38... Ng4+ {[%clk 0:00:20.6]} 39.
Kg2 {[%clk 0:00:20.5]} 39... Ne3+ {[%clk 0:00:22.5]} 40. Kf2 {[%clk 0:00:21.6]}
40... Nb4 {[%clk 0:00:21.5]} 41. Nxd4 {[%clk 0:00:21.9]} 41... Nxd3+ {[%clk
0:00:22.2]} 42. Kxe3 {[%clk 0:00:23.3]} 42... Nxe1 {[%clk 0:00:23.2]} 43. N4xf5
{[%clk 0:00:22.9]} 43... Qe5+ {[%clk 0:00:24.4]} 44. Kd2 {[%clk 0:00:20.9]}
44... Ng2 {[%clk 0:00:18]} 45. Qxh5 {[%clk 0:00:17.1]} 45... Nxf4 {[%clk
0:00:18.6]} 46. gxf4 {[%clk 0:00:18.5]} 46... Rg2+ {[%clk 0:00:18.5]} 47. Kd3
{[%clk 0:00:19]} 47... Qd5+ {[%clk 0:00:18.4]} 48. Nd4 {[%clk 0:00:18.4]} 48...
Qxh5 {[%clk 0:00:18.9]} 49. Kc4 {[%clk 0:00:18.7]} 49... Rd2 {[%clk 0:00:15.2]}
50. a4 {[%clk 0:00:19]} 50... Rxd4+ {[%clk 0:00:15.3]} 51. Kxd4 {[%clk
0:00:20.6]} 51... Qf5 {[%clk 0:00:16.6]} 52. Kc4 {[%clk 0:00:21.1]} 52... Qxf4+
{[%clk 0:00:17.2]} 53. Kd5 {[%clk 0:00:22.7]} 53... Qb4 {[%clk 0:00:17.7]} 54.
Ke6 {[%clk 0:00:24]} 54... Rxd6+ {[%clk 0:00:17.6]} 55. cxd6 {[%clk 0:00:25.9]}
55... Qxb3+ {[%clk 0:00:17.2]} 56. Ke7 {[%clk 0:00:27.5]} 56... Qxa4 {[%clk
0:00:19.1]} 57. d7 {[%clk 0:00:29.3]} 57... Qxd7+ {[%clk 0:00:20.1]} 58. Kxd7
{[%clk 0:00:30.8]} 58... a4 {[%clk 0:00:21.7]} 0-1

[Event "*** Titled Tuesday Blitz"]
[Site "Chess.com"]
[Date "2019.10.01"]
[Round "4"]
[White "yuki_chess123"]
[Black "Alex_Terzi"]
[Result "0-1"]
[WhiteElo "2183"]
[BlackElo "2617"]
[TimeControl "180+2"]
[EndTime "13:57:07 PDT"]
[Termination "Alex_Terzi won by resignation"]

1. Nf3 {[%clk 0:03:01.9]} 1... c5 {[%clk 0:03:00.1]} 2. e4 {[%clk 0:03:02.2]}
2... Nc6 {[%clk 0:03:00]} 3. Bb5 {[%clk 0:03:03.1]} 3... g6 {[%clk 0:03:00.2]}
4. Bxc6 {[%clk 0:03:03.9]} 4... dxc6 {[%clk 0:03:01.4]} 5. d3 {[%clk 0:03:04.7]}
5... Bg7 {[%clk 0:03:02]} 6. Nc3 {[%clk 0:03:05.9]} 6... e5 {[%clk 0:02:49]} 7.
Be3 {[%clk 0:03:06.2]} 7... b6 {[%clk 0:02:41.9]} 8. a4 {[%clk 0:03:07.1]} 8...
Qe7 {[%clk 0:02:34.9]} 9. a5 {[%clk 0:03:07]} 9... b5 {[%clk 0:02:35.9]} 10. Nd2
{[%clk 0:03:02.8]} 10... Nf6 {[%clk 0:02:35.4]} 11. f3 {[%clk 0:02:52.5]} 11...
Nd7 {[%clk 0:02:34.5]} 12. Qe2 {[%clk 0:02:47.6]} 12... Nf8 {[%clk 0:02:32.3]}
13. Nb3 {[%clk 0:02:31.5]} 13... Ne6 {[%clk 0:02:32.9]} 14. Qf2 {[%clk
0:02:29.1]} 14... Nd4 {[%clk 0:02:33.8]} 15. Bxd4 {[%clk 0:02:11.9]} 15... cxd4
{[%clk 0:02:16.4]} 16. Ne2 {[%clk 0:02:07.8]} 16... Qb4+ {[%clk 0:02:07.3]} 17.
Kd1 {[%clk 0:02:08.4]} 17... O-O {[%clk 0:02:04.1]} 18. h4 {[%clk 0:02:01.2]}
18... Be6 {[%clk 0:02:03.8]} 19. Qe1 {[%clk 0:02:01.2]} 19... Qe7 {[%clk
0:01:49.1]} 20. h5 {[%clk 0:01:58.4]} 20... c5 {[%clk 0:01:42.2]} 21. hxg6
{[%clk 0:01:56]} 21... fxg6 {[%clk 0:01:41.7]} 22. Qh4 {[%clk 0:01:53]} 22...
Bf6 {[%clk 0:01:42.3]} 23. Qh2 {[%clk 0:01:48.8]} 23... c4 {[%clk 0:01:28]} 24.
Nc5 {[%clk 0:01:46]} 24... Rf7 {[%clk 0:01:17.8]} 25. Nxe6 {[%clk 0:01:43]}
25... Qxe6 {[%clk 0:01:19.7]} 26. Qh3 {[%clk 0:01:40]} 26... Qc6 {[%clk
0:01:10.3]} 27. f4 {[%clk 0:01:37.2]} 27... Rc8 {[%clk 0:01:04.1]} 28. Rf1
{[%clk 0:01:19.4]} 28... Bg7 {[%clk 0:00:47.5]} 29. f5 {[%clk 0:00:41.9]} 29...
cxd3 {[%clk 0:00:47]} 30. Qxd3 {[%clk 0:00:41]} 30... gxf5 {[%clk 0:00:47.5]}
31. Ng3 {[%clk 0:00:37.1]} 31... fxe4 {[%clk 0:00:43.7]} 32. Qb3 {[%clk
0:00:33.2]} 32... Rf8 {[%clk 0:00:21]} 33. Rxf7 {[%clk 0:00:20.5]} 33... Rxf7
{[%clk 0:00:21.6]} 34. Nf5 {[%clk 0:00:22]} 34... Qc4 {[%clk 0:00:19.6]} 35.
Qxc4 {[%clk 0:00:17.1]} 35... bxc4 {[%clk 0:00:21.5]} 36. g4 {[%clk 0:00:18.7]}
36... h5 {[%clk 0:00:22.7]} 37. Ke2 {[%clk 0:00:16.3]} 37... hxg4 {[%clk
0:00:23.6]} 38. Nd6 {[%clk 0:00:17.1]} 38... Rf3 {[%clk 0:00:23.8]} 39. Nxc4
{[%clk 0:00:16.4]} 39... Bh6 {[%clk 0:00:21.2]} 40. Nxe5 {[%clk 0:00:15]} 40...
d3+ {[%clk 0:00:21.6]} 41. cxd3 {[%clk 0:00:15.6]} 41... exd3+ {[%clk
0:00:22.7]} 42. Nxd3 {[%clk 0:00:15.3]} 42... Re3+ {[%clk 0:00:23.9]} 43. Kd2
{[%clk 0:00:16.4]} 43... g3 {[%clk 0:00:24.4]} 44. Rg1 {[%clk 0:00:14.6]} 44...
Kh7 {[%clk 0:00:25.1]} 45. Kc2 {[%clk 0:00:13.4]} 45... Re2+ {[%clk 0:00:23.9]}
46. Kb3 {[%clk 0:00:11.1]} 46... g2 {[%clk 0:00:20.1]} 47. Nc5 {[%clk
0:00:03.1]} 47... Be3 {[%clk 0:00:19.1]} 48. Rxg2 {[%clk 0:00:04.1]} 48... Rxg2
{[%clk 0:00:20.3]} 49. Ne6 {[%clk 0:00:04.7]} 49... Bc1 {[%clk 0:00:20.1]} 50.
Ka4 {[%clk 0:00:04.1]} 50... Rxb2 {[%clk 0:00:20.3]} 51. a6 {[%clk 0:00:05.5]}
51... Be3 {[%clk 0:00:21.2]} 0-1